fUSD/lending_fUSD_20240719
["ID","MTS","AMOUNT","RATE_DAILY","PERIOD"]
[332615295,1721352640162,-309.12639055,0.00014,2]
[332615297,1721352640321,-5859.33696734,0.00014,2]
[332615298,1721352640485,-703.9999999,0.00014,2]
[332615299,1721352640496,-555.08863786,0.00014,2]
[332615300,1721352640507,-459.72546419,0.00014,2]
[332615301,1721352640518,-763.48000001,0.00014,2]
[332615302,1721352640529,-3549.26405818,0.00014,2]
[332615303,1721352640644,-7020.93679144,0.00014,2]
[332615304,1721352640657,-262.79677064,0.00014,2]
[332615396,1721352643245,-819.0,0.00013721,2]
[332615398,1721352643255,-42697.59605615,0.00014,2]
[332615399,1721352643709,-8212.32735719,0.00014,2]
[332615402,1721352643722,-1023.82317081,0.00014,2]
[332615403,1721352643733,-1215.19989843,0.00014,2]
[332615405,1721352643745,-840.64392545,0.00014,2]
[332615407,1721352643757,-301.616,0.00014,2]
[332615408,1721352643768,-412.72332263,0.00014,2]
[332615409,1721352643780,-2788.85698837,0.00014,2]
[332615410,1721352643792,-38298.36588964,0.00014,2]
[332615411,1721352643804,-328.7496445,0.00014,2]
[332615412,1721352643816,-1747.575,0.00014,2]
[332615413,1721352643827,-294.14994472,0.00014,2]
[332615414,1721352643839,-933.45725422,0.00014,2]
[332615417,1721352644199,-807.19095031,0.00014,2]
[332615419,1721352644211,-264.39834773,0.00014,2]
[332615421,1721352644223,-559.40606601,0.00014,2]
[332615431,1721352646425,-4331.1121144,0.00014,2]
[332615432,1721352646438,-6820.37072697,0.00014,2]
[332615433,1721352646450,-1444.48620786,0.00014,2]
[332615434,1721352646481,-347.14,0.00014,2]
[332615435,1721352646494,-2499.18517507,0.00014,2]
[332615436,1721352646506,-484.82000001,0.00014,2]
[332615484,1721352771418,206.45,0.00025008,120]
[332615491,1721352814331,172.07191,0.00024,63]
[332615544,1721353832379,-348.94,0.00013002,2]
[332615545,1721353832388,-302.86135583,0.00013213,2]
[332615546,1721353832400,-1951.62788942,0.00013213,2]
[332615547,1721353832410,-483.0,0.00013313,2]
[332615548,1721353832420,-4154.0,0.00013314,2]
[332615549,1721353832430,-150.0,0.00013863,2]
[332615550,1721353832440,-4326.23410366,0.00013863,2]
[332615551,1721353832450,-300.0,0.00013889,2]
[332615552,1721353832459,-233.7015,0.0001389,2]
[332615553,1721353832469,-4502.7181,0.0001389,2]
[332615554,1721353832479,-1131.4685,0.0001389,2]
[332615555,1721353832488,-212.7373,0.0001389,2]
[332615556,1721353832497,-2848.6867,0.0001389,2]
[332615557,1721353832507,-5276.698,0.000139,2]
[332615558,1721353832516,-2500.0,0.000139,2]
[332615559,1721353832526,-150.8018581,0.000139,2]
[332615560,1721353832535,-4234.60037883,0.000139,2]
[332615561,1721353832544,-311.41764806,0.000139,2]
[332615562,1721353832553,-195.1786315,0.0001393,2]
[332615563,1721353832563,-229.48873635,0.00013979,2]
[332615564,1721353832572,-789.19,0.0001398,3]
[332615565,1721353832581,-300.0,0.00013989,2]
[332615566,1721353832591,-499.99,0.0001399,2]
[332615567,1721353832601,-336.61,0.0001399,2]
[332615568,1721353832611,-19455.67742471,0.0001399,2]
[332615569,1721353832623,-3151.68556169,0.0001399,2]
[332615570,1721353832632,-228839.9043,0.0001399,2]
[332615571,1721353832642,-154.6,0.0001399,2]
[332615572,1721353832651,-154.6,0.0001399,2]
[332615573,1721353832661,-154.6,0.0001399,2]
[332615574,1721353832671,-154.6,0.0001399,2]
[332615575,1721353832680,-45094.68952994,0.00014,2]
[332615576,1721353832691,-603.50800002,0.00014,2]
[332615577,1721353832703,-6552.66101867,0.00014,2]
[332615578,1721353832715,-16594.53679471,0.00014,2]
[332615579,1721353832726,-584.59550704,0.00014,2]
[332615580,1721353832737,-487.4499434,0.00014,2]
[332615581,1721353832903,-886.99,0.00014,2]
[332615582,1721353832999,-12395.11,0.00014,2]
[332615586,1721353838237,-584.30503301,0.00013213,2]
[332615588,1721353838249,-3116.23335189,0.00013213,2]
[332615589,1721353838262,-1919.4806151,0.00013213,2]
[332615590,1721353838272,-8299.9171049,0.00014,2]
[332615600,1721353838441,-3331.41697924,0.00014,2]
[332615602,1721353838452,-630.73413543,0.00014,2]
[332615603,1721353838463,-18527.90708957,0.00014,2]
[332615604,1721353838474,-169205.3965589,0.00014,2]
[332615605,1721353838485,-469.18888834,0.00014,2]
[332615606,1721353838496,-529.12011047,0.00014,2]
[332615607,1721353838507,-70512.55288488,0.00014,2]
[332615608,1721353838660,-1138.18072319,0.00014,2]
[332615609,1721353838671,-3074.637,0.00014,2]
[332615622,1721353840422,-1209.54095137,0.00014,2]
[332615623,1721353840434,-1488.56958564,0.00014,2]
[332615624,1721353840445,-349.21175885,0.00014,2]
[332615625,1721353840461,-32935.320011,0.00014,2]
[332615626,1721353840474,-12655.59017907,0.00014,2]
[332615627,1721353840485,-49288.94165201,0.00014,2]
[332615628,1721353840624,-474.621015,0.00014,2]
[332615629,1721353840636,-88513.95765878,0.00014,2]
[332615893,1721353843388,-190.47138143,0.000139,2]
[332615895,1721353843398,-179.40513053,0.00014,2]
[332616165,1721353846413,-2090.822,0.00014,2]
[332616171,1721353846738,-3297.495,0.00014,2]
[332616172,1721353846749,-2809.85444481,0.00014,2]
[332616173,1721353846760,-846.47514523,0.00014,2]
[332616888,1721354529565,994.31462327,0.0002,30]
[332616896,1721354881250,150.0,0.00010662,2]
[332616897,1721354881272,150.0,0.00010662,2]
[332616898,1721354881294,132.53,0.00010662,2]
[332616905,1721354977989,150.0,0.00010662,2]
[332616906,1721354978011,150.0,0.00010662,2]
[332616907,1721354978031,150.0,0.00010662,2]
[332616908,1721354978053,200.46557454,0.00010662,2]
[332616909,1721354978074,150.0,0.00010662,2]
[332616910,1721354978098,5741.76672447,0.00010662,2]
[332616912,1721355033153,-3648.62042691,0.00012335,2]
[332616913,1721355033163,-355.59,0.00012435,2]
[332616914,1721355033173,-158.12961263,0.00012461,2]
[332616915,1721355033182,-300.0,0.00012581,2]
[332616916,1721355033192,-8758.78788046,0.00012581,2]
[332616917,1721355033204,-360.35116936,0.00012581,2]
[332616918,1721355033215,-765.29022052,0.00012581,2]
[332616919,1721355033226,-689.30241408,0.00012581,2]
[332616920,1721355033237,-922.53142088,0.00012581,2]
[332616921,1721355033249,-481.71810404,0.00012581,2]
[332616922,1721355033260,-138.19625832,0.00012581,2]
[332616923,1721355033269,-512.21181582,0.00012582,2]
[332616924,1721355033281,-23387.78818418,0.00012582,2]
[332616925,1721355033291,-250.0,0.00012614,2]
[332616926,1721355033300,-425.59,0.00012666,2]
[332616927,1721355033309,-800.34,0.00012667,2]
[332616928,1721355033319,-298.0,0.00012697,2]
[332616929,1721355033328,-403.78,0.00012819,2]
[332616930,1721355033337,-505.45,0.00012827,2]
[332616931,1721355033347,-19657.62479191,0.00012855,2]
[332616932,1721355033356,-1273.11276845,0.00012883,2]
[332616933,1721355033365,-481.61,0.00012884,2]
[332616934,1721355033375,-155.36061902,0.00012923,2]
[332616935,1721355033384,-4256.32404059,0.00012923,2]
[332616936,1721355033395,-3065.18159048,0.00012923,2]
[332616937,1721355033405,-173.05,0.00012925,2]
[332616938,1721355033416,-150.99,0.00012925,2]
[332616939,1721355033425,-432.53,0.00012926,2]
[332616940,1721355033435,-150.0,0.00013,2]
[332616941,1721355033444,-500.0,0.00013001,2]
[332616942,1721355033454,-827.98,0.00013001,2]
[332616943,1721355033463,-1627.28,0.00013001,2]
[332616944,1721355033473,-158.12961263,0.00013126,2]
[332616945,1721355033483,-3184.0,0.00013304,2]
[332616946,1721355033492,-6554.40364392,0.00013483,2]
[332616947,1721355033502,-155.25705997,0.00013561,2]
[332616948,1721355033511,-499.99,0.00013562,2]
[332616949,1721355033520,-367.92612616,0.00013579,2]
[332616950,1721355033529,-11124.54186248,0.00013671,2]
[332616951,1721355033538,-250.0,0.00013699,2]
[332616952,1721355033547,-500.0,0.00013699,2]
[332616953,1721355033557,-720.62,0.00013699,2]
[332616954,1721355033567,-158.12961263,0.0001379,2]
[332616955,1721355033576,-3153.79180358,0.0001379,2]
[332616956,1721355033586,-371.92821841,0.00013799,2]
[332616957,1721355033595,-420.0,0.00013803,2]
[332616958,1721355033605,-277.34033653,0.00013875,2]
[332616959,1721355033615,-709.87,0.0001388,3]
[332616960,1721355033625,-167.0622,0.0001389,2]
[332616961,1721355033634,-44004.6149,0.0001389,2]
[332616962,1721355033643,-702.3431,0.0001389,2]
[332616963,1721355033653,-2562.9157,0.0001389,2]
[332616964,1721355033662,-455.6942,0.0001389,2]
[332616965,1721355033674,-827.8092,0.0001389,2]
[332616967,1721355033683,-4295.1287,0.0001389,2]
[332616969,1721355033693,-2651.335,0.0001389,2]
[332616971,1721355033702,-46187.0455,0.0001389,2]
[332616973,1721355033711,-2608.389,0.0001389,2]
[332616975,1721355033721,-7500.0,0.0001389,2]
[332616977,1721355033730,-311.52180377,0.00013897,2]
[332616978,1721355033739,-214.298147,0.00013897,2]
[332616981,1721355033749,-1256.2845,0.000139,2]
[332616982,1721355033759,-2844.11,0.000139,2]
[332616984,1721355033770,-349.9286,0.000139,2]
[332616986,1721355033779,-1553.36161765,0.000139,2]
[332616988,1721355033788,-167.41684185,0.000139,2]
[332616990,1721355033798,-450.235285,0.00013973,2]
[332616992,1721355033807,-8702.15312494,0.0001398,2]
[332616993,1721355033816,-295.19638244,0.00013987,2]
[332616994,1721355033825,-791.10482954,0.00013987,2]
[332616995,1721355033834,-3955.5241477,0.0001399,2]
[332616996,1721355033843,-222483.240291,0.0001399,2]
[332616997,1721355033852,-155.22708094,0.0001399,2]
[332616998,1721355034128,-154.6,0.0001399,2]
[332616999,1721355034141,-154.6,0.0001399,2]
[332617000,1721355034151,-1110.00071098,0.00013997,2]
[332617001,1721355034160,-500.0,0.00013999,2]
[332617002,1721355034171,-600.26196007,0.00013999,2]
[332617003,1721355034180,-500.0,0.00013999,2]
[332617004,1721355034190,-500.0,0.00013999,2]
[332617005,1721355034203,-797218.06634298,0.00014,2]
[332617006,1721355034216,-285.09087776,0.00014,2]
[332617007,1721355034304,-448.12958754,0.00014,2]
[332617008,1721355034316,-7450.39419363,0.00014,2]
[332617009,1721355034550,-315.7795185,0.00014,2]
[332617010,1721355034563,-696.77431602,0.00014,2]
[332617011,1721355034574,-650.01339646,0.00014,2]
[332617012,1721355034585,-16074.2349498,0.00014,2]
[332617013,1721355034651,-25555.68258794,0.00014,2]
[332617019,1721355038577,-1135.6169544,0.00012273,2]
[332617021,1721355038828,-977.69249947,0.00012273,2]
[332617023,1721355038844,-335.76750053,0.00012273,2]
[332617026,1721355038859,-288.84579453,0.00012273,2]
[332617028,1721355038876,-2616.23862107,0.00012273,2]
[332617031,1721355038889,-2930.29047732,0.00014,2]
[332617033,1721355038903,-7832.93162208,0.00014,2]
[332617097,1721355040640,-11538.0026937,0.00014,2]
[332617098,1721355040655,-1011.59816096,0.00014,2]
[332617099,1721355040671,-3197.1262172,0.00014,2]
[332617100,1721355040686,-1357.83224062,0.00014,2]
[332617101,1721355040703,-683.74755081,0.00014,2]
[332617102,1721355040717,-2495.58714316,0.00014,2]
[332617103,1721355040733,-822285.80032638,0.00014,2]
[332617104,1721355040749,-332452.95828141,0.00014,2]
[332617105,1721355040762,-500.0,0.00014,2]
[332617106,1721355040775,-500.0,0.00014,2]
[332617107,1721355040788,-500.0,0.00014,2]
[332617108,1721355040800,-500.0,0.00014,2]
[332617109,1721355040812,-500.0,0.00014,2]
[332617110,1721355040824,-500.0,0.00014,2]
[332617111,1721355040838,-500.0,0.00014,2]
[332617112,1721355040850,-500.0,0.00014,2]
[332617113,1721355040862,-500.0,0.00014,2]
[332617114,1721355040874,-666.0,0.00014,2]
[332617115,1721355040886,-2322.46699,0.00014,2]
[332617116,1721355040898,-250.0,0.00014,2]
[332617117,1721355040910,-250.0,0.00014,2]
[332617118,1721355040924,-250.0,0.00014,2]
[332617119,1721355040935,-250.0,0.00014,2]
[332617120,1721355040949,-250.0,0.00014,2]
[332617121,1721355040961,-250.0,0.00014,2]
[332617122,1721355040972,-250.0,0.00014,2]
[332617123,1721355040985,-250.0,0.00014,2]
[332617124,1721355040997,-250.0,0.00014,2]
[332617125,1721355041010,-250.0,0.00014,2]
[332617128,1721355041023,-250.0,0.00014,2]
[332617130,1721355041035,-250.0,0.00014,2]
[332617132,1721355041047,-250.0,0.00014,2]
[332617135,1721355041059,-250.0,0.00014,2]
[332617140,1721355041071,-250.0,0.00014,2]
[332617143,1721355041083,-250.0,0.00014,2]
[332617146,1721355041095,-250.0,0.00014,2]
[332617149,1721355041108,-250.0,0.00014,2]
[332617152,1721355041120,-250.0,0.00014,2]
[332617155,1721355041132,-250.0,0.00014,2]
[332617157,1721355041144,-250.0,0.00014,2]
[332617159,1721355041155,-250.0,0.00014,2]
[332617162,1721355041168,-250.0,0.00014,2]
[332617164,1721355041181,-250.0,0.00014,2]
[332617166,1721355041193,-250.0,0.00014,2]
[332617168,1721355041205,-254.4,0.00014,2]
[332617171,1721355041217,-22236.79148673,0.00014,2]
[332617173,1721355041229,-187.57,0.00014087,2]
[332617175,1721355041240,-174.69,0.00014106,2]
[332617177,1721355041253,-3019.24742686,0.00014261,2]
[332617180,1721355041265,-298.0,0.00014284,2]
[332617182,1721355041277,-505.45,0.00014431,2]
[332617184,1721355041289,-371.92821832,0.0001458,2]
[332617187,1721355041301,-3153.79180351,0.0001458,2]
[332617189,1721355041314,-160.14,0.00014777,2]
[332617192,1721355041327,-450.235285,0.00014795,2]
[332617194,1721355041341,-214.29814693,0.00014897,2]
[332617196,1721355041352,-211.14497424,0.000149,2]
[332617199,1721355041365,-211.14497424,0.000149,2]
[332617201,1721355041377,-211.14497424,0.000149,2]
[332617203,1721355041388,-150.0,0.00015,2]
[332617205,1721355041404,-587.0,0.00015144,2]
[332617207,1721355041415,-432.53,0.0001519,2]
[332617210,1721355041428,-371.92821832,0.0001537,2]
[332617212,1721355041441,-3153.79180351,0.0001537,2]
[332617214,1721355041453,-450.235285,0.00015616,2]
[332617216,1721355041465,-298.0,0.00015871,2]
[332617218,1721355041479,-214.29814693,0.00015898,2]
[332617220,1721355041491,-5000.0,0.00016,2]
[332617223,1721355041504,-505.45,0.00016034,2]
[332617225,1721355041516,-650.06758544,0.00016159,2]
[332617228,1721355041530,-432.55364495,0.00016159,2]
[332617230,1721355041544,-371.92821832,0.0001616,2]
[332617233,1721355041559,-3153.79180351,0.0001616,2]
[332617235,1721355041570,-1445.49306909,0.00016232,2]
[332617237,1721355041583,-672.0,0.00016233,2]
[332617240,1721355041595,-159.31016492,0.00016358,2]
[332617242,1721355041609,-450.235285,0.00016438,2]
[332617244,1721355041622,-408.67226938,0.0001647,2]
[332617247,1721355041635,-155.37242202,0.0001647,2]
[332617249,1721355041648,-305.30165093,0.0001647,2]
[332617252,1721355041660,-166.73757241,0.0001647,2]
[332617254,1721355041674,-967.79,0.00016471,2]
[332617256,1721355041685,-823.0,0.00016615,2]
[332617258,1721355041695,-270.71389979,0.00016799,2]
[332617260,1721355041705,-155.0,0.00016799,2]
[332617262,1721355041714,-4377.0,0.000168,2]
[332617264,1721355041723,-3246.98092254,0.00016849,2]
[332617266,1721355041733,-890.50362859,0.00016855,2]
[332617268,1721355041742,-155.19378338,0.00016855,2]
[332617270,1721355041752,-306.06891297,0.00016882,2]
[332617272,1721355041762,-242.83152267,0.00016882,2]
[332617275,1721355041773,-155.21202214,0.00016882,2]
[332617277,1721355041782,-164.55909033,0.00016897,2]
[332617279,1721355041792,-521.56986446,0.00016897,2]
[332617281,1721355041803,-329.39463686,0.00016897,2]
[332617283,1721355041814,-214.29814693,0.00016898,2]
[332617285,1721355041824,-371.92821832,0.0001695,2]
[332617287,1721355041834,-3153.79180351,0.0001695,2]
[332617289,1721355041846,-708.0,0.00017,2]
[332617340,1721355042302,-641.69512057,0.00017,2]
[332617344,1721355042331,-200.0,0.00017,2]
[332617348,1721355042360,-1200.0,0.00017,2]
[332617351,1721355042380,-5118.0,0.00017047,2]
[332617354,1721355042393,-1143.302,0.00017047,2]
[332617356,1721355042402,-5824.0,0.00017047,2]
[332617358,1721355042412,-38329.0,0.00017047,2]
[332617360,1721355042422,-722.725,0.00017047,2]
[332617361,1721355042431,-450.235285,0.0001726,2]
[332617363,1721355042439,-152.0,0.00017381,2]
[332617366,1721355042449,-151.839,0.00017381,2]
[332617368,1721355042458,-196.489,0.00017381,2]
[332617370,1721355042467,-279.631,0.00017381,2]
[332617372,1721355042479,-296.644,0.00017381,2]
[332617374,1721355042488,-264.615,0.00017381,2]
[332617376,1721355042498,-150.327,0.00017381,2]
[332617378,1721355042507,-150.171,0.00017381,2]
[332617380,1721355042516,-447.164,0.00017381,2]
[332617382,1721355042526,-620.0,0.00017381,2]
[332617384,1721355042535,-245.821,0.00017381,2]
[332617386,1721355042545,-150.396,0.00017381,2]
[332617388,1721355042554,-2381.0,0.00017381,2]
[332617390,1721355042563,-551.245,0.00017381,2]
[332617392,1721355042573,-2091.71911495,0.00017381,2]
[332617413,1721355042765,-987.22897559,0.00017381,2]
[332617416,1721355042776,-202.05190946,0.00017381,2]
[332617418,1721355042785,-1997.257,0.00017381,2]
[332617420,1721355042794,-154.473706,0.00017381,2]
[332617422,1721355042803,-409.49740374,0.00017381,2]
[332617424,1721355042814,-21.21030926,0.00017381,2]
[332617426,1721355042824,-430.707713,0.00017381,2]
[332617428,1721355042833,-151.677963,0.00017381,2]
[332617430,1721355042845,-151.702386,0.00017381,2]
[332617432,1721355042855,-1000.0,0.000174,2]
[332617434,1721355042866,-96.54709759,0.000174,5]
[332617789,1721355045662,-1445.49306909,0.00016033,2]
[332617791,1721355045673,-1388.69704685,0.00016948,2]
[332617793,1721355045683,-383.45290241,0.000174,5]
[332617795,1721355045692,-432.53,0.00017454,2]
[332617797,1721355045702,-298.0,0.00017459,2]
[332617799,1721355045711,-187.57,0.00017609,2]
[332617801,1721355045721,-164.092104,0.00017636,2]
[332617803,1721355045730,-505.45,0.00017637,2]
[332617805,1721355045739,-355.49,0.00017726,2]
[332617807,1721355045749,-371.92821832,0.0001774,2]
[332617809,1721355045758,-3153.79180351,0.0001774,2]
[332617811,1721355045768,-591.66431635,0.00017782,2]
[332617813,1721355045778,-214.29814693,0.00017899,2]
[332617816,1721355045790,-155.27526586,0.00018081,2]
[332617818,1721355045800,-151.368161,0.00018082,2]
[332617820,1721355045811,-151.0,0.00018082,2]
[332617822,1721355045821,-153.031127,0.00018082,2]
[332617823,1721355045830,-151.173843,0.00018082,2]
[332617825,1721355045840,-450.235285,0.00018082,2]
[332617827,1721355045850,-1000.0,0.000182,2]
[332617829,1721355045860,-1152.0,0.00018229,2]
[332617831,1721355045869,-160.14,0.00018472,2]
[332617833,1721355045879,-20217.03748812,0.00018499,2]
[332617835,1721355045888,-960.73978605,0.00018529,2]
[332617837,1721355045897,-155.25739506,0.00018529,2]
[332617839,1721355045907,-371.92821832,0.0001853,2]
[332617841,1721355045917,-1014.70873793,0.0001853,2]
[332617843,1721355045930,-1013.27421864,0.0001853,2]
[332617845,1721355045943,-1125.80884694,0.0001853,2]
[332617847,1721355045953,-967.79,0.0001853,2]
[332617850,1721355045964,-355.4,0.00018548,2]
[332617852,1721355045974,-1017.0,0.000186,2]
[332617854,1721355045984,-3084.50137584,0.00018875,2]
[332617856,1721355045996,-162.47954669,0.00018875,2]
[332617858,1721355046005,-214.29814693,0.00018899,2]
[332617860,1721355046016,-450.235285,0.00018904,2]
[332617862,1721355046026,-250.0,0.00019,2]
[332617863,1721355046035,-382.69542829,0.00019,2]
[332617864,1721355046047,-397.66172814,0.00019,2]
[332617865,1721355046059,-638.09523483,0.00019,2]
[332617866,1721355046071,-904.01459874,0.00019,2]
[332617867,1721355046081,-298.0,0.00019046,2]
[332617868,1721355046091,-720.62,0.00019178,2]
[332617869,1721355046100,-505.45,0.00019241,2]
[332617870,1721355046110,-371.92821832,0.0001932,2]
[332617871,1721355046119,-3153.79180351,0.0001932,2]
[332617872,1721355046128,-173.05,0.00019388,2]
[332617873,1721355046138,-240.2471675,0.00019398,2]
[332617874,1721355046147,-311.52180377,0.00019399,2]
[332617875,1721355046157,-1141.36658725,0.000196,2]
[332617876,1721355046167,-1021.48262479,0.000196,2]
[332617877,1721355046177,-432.53,0.00019718,2]
[332617878,1721355046187,-450.235285,0.00019726,2]
[332617879,1721355046196,-214.29814693,0.000199,2]
[332617880,1721355046206,-155.34031735,0.000199,2]
[332617881,1721355046216,-225.0,0.000199,2]
[332617882,1721355046225,-1639.6953451,0.0002,2]
[332617883,1721355046234,-864.36984213,0.0002,2]
[332617884,1721355046244,-155.03127286,0.0002,2]
[332617885,1721355046254,-151.0,0.0002,2]
[332617886,1721355046264,-152.263743,0.0002,2]
[332617888,1721355046273,-151.0,0.0002,2]
[332617889,1721355046283,-151.0,0.0002,2]
[332617890,1721355046293,-170.558529,0.0002,2]
[332617891,1721355046302,-151.0,0.0002,2]
[332617892,1721355046312,-151.0,0.0002,2]
[332617893,1721355046321,-151.0,0.0002,2]
[332617894,1721355046331,-151.0,0.0002,2]
[332617895,1721355046341,-151.0,0.0002,2]
[332617896,1721355046588,-152.588067,0.0002,2]
[332617897,1721355046625,-151.0,0.0002,2]
[332617898,1721355046635,-151.0,0.0002,2]
[332617899,1721355046645,-1000.0,0.0002,2]
[332617900,1721355046655,-151.0,0.0002,2]
[332617901,1721355046665,-1509.0,0.0002,2]
[332617902,1721355046675,-151.479913,0.0002,2]
[332617903,1721355046685,-370.44304279,0.0002,2]
[332617904,1721355046695,-45628.36353091,0.0002,2]
[332617905,1721355046704,-4038.344,0.00020047,2]
[332617906,1721355046714,-5209.504,0.00020047,2]
[332617907,1721355046724,-38329.0,0.00020047,2]
[332617908,1721355046734,-371.92821832,0.0002011,2]
[332617909,1721355046745,-3153.79180351,0.0002011,2]
[332617910,1721355046755,-434.289827,0.00020121,2]
[332617911,1721355046765,-434.289827,0.00020121,2]
[332617912,1721355046774,-223.850361,0.00020121,2]
[332617913,1721355046784,-159.664253,0.00020121,2]
[332617914,1721355046794,-151.0,0.00020121,2]
[332617915,1721355046803,-151.0,0.00020121,2]
[332617916,1721355046813,-153.219207,0.00020121,2]
[332617917,1721355046823,-169.82775733,0.00020191,2]
[332617918,1721355046832,-150.51,0.00020192,2]
[332617919,1721355046841,-150.0,0.00020192,2]
[332617920,1721355046851,-150.0,0.00020192,2]
[332617921,1721355046860,-150.0,0.00020192,2]
[332617922,1721355046870,-155.34772224,0.0002038,2]
[332617923,1721355046880,-150.0,0.00020381,2]
[332617924,1721355046890,-411.558,0.00020381,2]
[332617925,1721355046899,-2378.69,0.00020381,2]
[332617926,1721355046909,-549.0,0.00020381,2]
[332617927,1721355046919,-1521.181,0.00020381,2]
[332617928,1721355046930,-356.0,0.000205,2]
[332617929,1721355046939,-1000.0,0.000205,2]
[332617930,1721355046950,-450.235285,0.00020548,2]
[332617931,1721355046960,-227.43774807,0.00020588,2]
[332617932,1721355046970,-227.43774807,0.00020588,2]
[332617933,1721355046980,-967.79,0.00020589,2]
[332617934,1721355046990,-573.42847698,0.00020821,2]
[332617935,1721355046999,-500.0,0.00020831,2]
[332617936,1721355047009,-500.0,0.00020832,2]
[332617937,1721355047019,-2836.27119064,0.00020899,2]
[332617938,1721355047029,-5800.0,0.000209,2]
[332617939,1721355047039,-3405.54299994,0.000209,2]
[332617940,1721355047049,-371.92821832,0.000209,2]
[332617941,1721355047059,-3153.79180351,0.000209,2]
[332617942,1721355047069,-3246.98092253,0.000209,2]
[332617943,1721355047079,-214.29814693,0.000209,2]
[332617944,1721355047089,-157.071907,0.00020948,2]
[332617945,1721355047099,-157.071907,0.00020948,2]
[332617946,1721355047110,-157.071907,0.00020948,2]
[332617947,1721355047120,-157.071907,0.00020948,2]
[332617948,1721355047130,-154.6,0.0002099,2]
[332617949,1721355047139,-154.6,0.0002099,2]
[332617950,1721355047149,-154.6,0.0002099,2]
[332617951,1721355047159,-154.6,0.0002099,2]
[332617952,1721355047169,-154.6,0.0002099,2]
[332617953,1721355047179,-2937.9342774,0.00020996,2]
[332617954,1721355047190,-30000.0,0.00020997,2]
[332617955,1721355047200,-165.35598365,0.00020997,2]
[332617956,1721355047210,-175.20796961,0.00020999,2]
[332617957,1721355047220,-5938.62489471,0.00020999,2]
[332617958,1721355047230,-430.707713,0.00020999,2]
[332617959,1721355047240,-430.707713,0.00020999,2]
[332617960,1721355047249,-151.0,0.00020999,2]
[332617961,1721355047260,-256.90014077,0.00020999,2]
[332617962,1721355047270,-1059839.06649001,0.00021,2]
[332617963,1721355047282,-415.05408064,0.00021,2]
[332617964,1721355047294,-12611.58875453,0.00021,2]
[332617965,1721355047305,-33293.22027576,0.00021,2]
[332617966,1721355047544,-484.35251733,0.00015999,2]
[332617967,1721355047553,-19.4521527,0.00021,2]
[332617968,1721355047565,-1216.19296304,0.00021,2]
[332617969,1721355048580,-389.63124367,0.00016882,2]
[332617970,1721355048592,-131.93862079,0.00016882,2]
[332617971,1721355048604,-1084.78359096,0.00021,2]
[332617972,1721355048617,-283.77928794,0.00021,2]
[332617973,1721355048630,-1761.55711027,0.00021,2]
[332617974,1721355048642,-662.63936826,0.00021,2]
[332617975,1721355048655,-382.88143247,0.00021,2]
[332617976,1721355048667,-469.65,0.00021,2]
[332617977,1721355048679,-14619.94,0.00021,2]
[332617978,1721355048691,-6254.49072629,0.00021,2]
[332617979,1721355108800,913.0,0.0002,10]
[332617992,1721356006284,-1814.98021026,0.00011324,2]
[332617993,1721356006304,-185.01978974,0.000117,2]
[332617994,1721356019428,-564.98021026,0.000117,2]
[332617995,1721356022217,1228.40674856,0.00011525,2]
[332617998,1721356066865,-2000.0,0.000118,2]
[332617999,1721356068048,-2000.0,0.000118,2]
[332618000,1721356068818,-2000.0,0.000118,2]